fUSD/lending_fUSD_20260106
["ID","MTS","AMOUNT","RATE_DAILY","PERIOD"]
[400605833,1767741046260,-800.0,0.00039434,13]
[400605836,1767741046276,-800.0,0.00039434,13]
[400605839,1767741046291,-800.0,0.00039434,13]
[400605841,1767741046308,-800.0,0.00039434,13]
[400605844,1767741046321,-800.0,0.00039434,13]
[400605846,1767741046340,-800.0,0.00039434,13]
[400605849,1767741046355,-800.0,0.00039434,13]
[400605851,1767741046370,-800.0,0.00039434,13]
[400605854,1767741046388,-382.0,0.00039434,13]
[400605857,1767741046403,-160.0,0.000395,30]
[400605859,1767741046419,-160.0,0.000395,30]
[400605862,1767741046436,-160.0,0.000395,30]
[400605865,1767741046457,-160.0,0.000395,30]
[400605868,1767741046474,-154.98,0.00039649,2]
[400605870,1767741046490,-554.672824,0.000398,41]
[400605873,1767741046504,-366.53477038,0.00039838,2]
[400605876,1767741046520,-5077.93,0.000399,14]
[400605878,1767741046536,-152.0,0.00039951,10]
[400605881,1767741046551,-1000.0,0.00039973,7]
[400605883,1767741046567,-17524.2834566,0.00039979,4]
[400605886,1767741046583,-39534.8029788,0.00039989,4]
[400605888,1767741046597,-40889.9947322,0.00039989,4]
[400605891,1767741046613,-602.64326461,0.0004,5]
[400605894,1767741046628,-250.0,0.0004,45]
[400605896,1767741046643,-250.0,0.0004,45]
[400605899,1767741046659,-250.0,0.0004,45]
[400605901,1767741046675,-553.49149987,0.0004,2]
[400605904,1767741046691,-179.67498223,0.0004,120]
[400605906,1767741046706,-152.0,0.0004,120]
[400605909,1767741046722,-152.0,0.0004,120]
[400605912,1767741046737,-1018.0,0.0004,30]
[400605914,1767741046752,-320.74051982,0.00040096,2]
[400605917,1767741046768,-1531.04,0.00040111,120]
[400605920,1767741046784,-4177.29732156,0.00040113,15]
[400605922,1767741046800,-237.12745582,0.00040197,120]
[400605925,1767741046817,-1275.58,0.000402,14]
[400605928,1767741046832,-1000.0,0.00040282,7]
[400605931,1767741046847,-1846.131,0.00040363,57]
[400605934,1767741046863,-5841.42781888,0.0004049,4]
[400605936,1767741046881,-250.0,0.000405,45]
[400605939,1767741046897,-250.0,0.000405,45]
[400605941,1767741046914,-160.0,0.000405,35]
[400605944,1767741046930,-160.0,0.000405,35]
[400605946,1767741046946,-160.0,0.000405,35]
[400605949,1767741046962,-160.0,0.000405,35]
[400605951,1767741046979,-1115.9,0.000406,14]
[400605954,1767741046997,-152.0,0.000406,120]
[400605957,1767741047013,-152.0,0.00040631,11]
[400605960,1767741047030,-152.0,0.000407,120]
[400605962,1767741047048,-502.0,0.00040714,14]
[400605965,1767741047063,-153.0,0.0004077,120]
[400605968,1767741047078,-153.0,0.0004077,120]
[400605972,1767741047094,-153.0,0.0004077,120]
[400605974,1767741047109,-171.435863,0.000408,120]
[400605977,1767741047126,-7906.96059577,0.00040811,4]
[400605980,1767741047141,-5841.42781888,0.00040811,4]
[400605982,1767741047157,-500.0,0.00040821,120]
[400605985,1767741047171,-500.0,0.00040821,120]
[400605987,1767741047187,-500.0,0.00040821,120]
[400605990,1767741047202,-500.0,0.00040821,120]
[400605992,1767741047216,-500.0,0.00040821,120]
[400605995,1767741047231,-500.0,0.00040821,120]
[400605998,1767741047246,-500.0,0.00040821,120]
[400606000,1767741047261,-500.0,0.00040821,120]
[400606002,1767741047275,-500.0,0.00040821,120]
[400606005,1767741047292,-500.0,0.00040821,120]
[400606007,1767741047307,-500.0,0.00040821,120]
[400606010,1767741047320,-500.0,0.00040821,120]
[400606012,1767741047337,-205.461604,0.00040821,120]
[400606013,1767741047351,-153.0,0.0004087,120]
[400606014,1767741047365,-153.0,0.0004087,120]
[400606015,1767741047381,-157.50335283,0.00040888,2]
[400606016,1767741047396,-5841.42781888,0.00040891,4]
[400606017,1767741047411,-1040.62,0.000409,30]
[400606018,1767741047427,-7906.96059577,0.00040901,4]
[400606019,1767741047441,-5841.42781888,0.00040901,4]
[400606020,1767741047457,-12049.38179998,0.00040911,15]
[400606022,1767741047473,-261.10675148,0.00040968,120]
[400606024,1767741047487,-153.0,0.0004097,120]
[400606027,1767741047501,-153.0,0.0004097,120]
[400606029,1767741047516,-5841.42781888,0.0004098,4]
[400606032,1767741047532,-2658.44986635,0.00040986,2]
[400606034,1767741047547,-7906.96059577,0.0004099,4]
[400606037,1767741047563,-5841.42781888,0.0004099,4]
[400606040,1767741047577,-281.48332724,0.00040995,16]
[400606042,1767741047592,-630.66739424,0.00040995,2]
[400606045,1767741047607,-1037.0,0.00041,2]
[400606047,1767741047622,-250.0,0.00041,45]
[400606050,1767741047636,-8083.14100592,0.00041,30]
[400606053,1767741047651,-250.0,0.00041,45]
[400606055,1767741047666,-551.0,0.00041,30]
[400606058,1767741047681,-402.81208106,0.00041,120]
[400606061,1767741047696,-1018.0,0.00041,30]
[400606063,1767741047711,-1275.58,0.00041,14]
[400606066,1767741047726,-366.53477038,0.00041024,28]
[400606068,1767741047741,-17524.2834566,0.00041066,4]
[400606071,1767741047755,-153.0,0.0004107,120]
[400606073,1767741047769,-153.0,0.0004107,120]
[400606075,1767741047785,-151.0,0.00041072,14]
[400606078,1767741047800,-7906.96059577,0.00041075,4]
[400606080,1767741047815,-17524.2834566,0.00041075,4]
[400606083,1767741047830,-31627.8423831,0.00041076,4]
[400606086,1767741047845,-35048.5669133,0.00041076,4]
[400606088,1767741047863,-39534.8029788,0.00041085,4]
[400606121,1767741047877,-40889.9947322,0.00041085,4]
[400606125,1767741048198,-63255.6847662,0.00041086,4]
[400606129,1767741048228,-64255.7060077,0.00041086,4]
[400606131,1767741048239,-150.0,0.00041094,20]
[400606133,1767741048250,-500.0,0.00041095,2]
[400606135,1767741048259,-500.0,0.00041095,2]
[400606138,1767741048269,-500.0,0.00041095,2]
[400606140,1767741048279,-500.0,0.00041095,2]
[400606141,1767741048290,-500.0,0.00041095,2]
[400606143,1767741048300,-500.0,0.00041095,2]
[400606145,1767741048310,-500.0,0.00041095,2]
[400606147,1767741048319,-500.0,0.00041095,2]
[400606149,1767741048329,-526.89052971,0.00041095,2]
[400606152,1767741048343,-500.0,0.00041095,2]
[400606154,1767741048353,-500.0,0.00041095,2]
[400606156,1767741048363,-500.0,0.00041095,2]
[400606158,1767741048373,-500.0,0.00041095,2]
[400606159,1767741048383,-500.0,0.00041095,2]
[400606161,1767741048392,-500.0,0.00041095,2]
[400606163,1767741048403,-500.0,0.00041095,2]
[400606165,1767741048415,-500.0,0.00041095,2]
[400606168,1767741048424,-500.0,0.00041095,2]
[400606169,1767741048434,-500.0,0.00041095,2]
[400606171,1767741048444,-500.0,0.00041095,2]
[400606173,1767741048454,-500.0,0.00041095,2]
[400606175,1767741048463,-500.0,0.00041095,2]
[400606177,1767741048472,-500.0,0.00041095,2]
[400606179,1767741048481,-500.0,0.00041095,2]
[400606181,1767741048490,-500.0,0.00041095,2]
[400606183,1767741048500,-500.0,0.00041095,2]
[400606185,1767741048510,-500.0,0.00041095,2]
[400606187,1767741048519,-500.0,0.00041095,2]
[400606189,1767741048529,-500.0,0.00041095,2]
[400606191,1767741048539,-500.0,0.00041095,2]
[400606193,1767741048549,-500.0,0.00041095,2]
[400606195,1767741048558,-500.0,0.00041095,2]
[400606197,1767741048568,-500.0,0.00041095,2]
[400606199,1767741048577,-500.0,0.00041095,2]
[400606201,1767741048587,-500.0,0.00041095,2]
[400606203,1767741048596,-322.07363945,0.00041095,2]
[400606205,1767741048606,-500.0,0.00041095,2]
[400606207,1767741048615,-500.0,0.00041095,2]
[400606209,1767741048625,-500.0,0.00041095,2]
[400606211,1767741048635,-500.0,0.00041095,2]
[400606214,1767741048644,-500.0,0.00041095,2]
[400606215,1767741048654,-500.0,0.00041095,2]
[400606217,1767741048664,-500.0,0.00041095,2]
[400606219,1767741048674,-500.0,0.00041095,2]
[400606221,1767741048684,-500.0,0.00041095,2]
[400606223,1767741048693,-500.0,0.00041095,2]
[400606225,1767741048703,-500.0,0.00041095,2]
[400606228,1767741048713,-500.0,0.00041095,2]
[400606230,1767741048725,-500.0,0.00041095,2]
[400606232,1767741048734,-500.0,0.00041095,2]
[400606234,1767741048744,-500.0,0.00041095,2]
[400606235,1767741048753,-500.0,0.00041095,2]
[400606237,1767741048763,-500.0,0.00041095,2]
[400606239,1767741048774,-500.0,0.00041095,2]
[400606241,1767741048785,-500.0,0.00041095,2]
[400606243,1767741048794,-500.0,0.00041095,2]
[400606246,1767741048804,-500.0,0.00041095,2]
[400606247,1767741048814,-500.0,0.00041095,2]
[400606250,1767741048824,-500.0,0.00041095,2]
[400606252,1767741048833,-162.71277919,0.00041095,2]
[400606254,1767741048843,-500.0,0.00041095,2]
[400606255,1767741048853,-500.0,0.00041095,2]
[400606257,1767741048863,-500.0,0.00041095,2]
[400606259,1767741048872,-500.0,0.00041095,2]
[400606262,1767741048882,-500.0,0.00041095,2]
[400606264,1767741048893,-500.0,0.00041095,2]
[400606266,1767741048903,-500.0,0.00041095,2]
[400606268,1767741048914,-500.0,0.00041095,2]
[400606270,1767741048924,-500.0,0.00041095,2]
[400606272,1767741048934,-500.0,0.00041095,2]
[400606274,1767741048944,-500.0,0.00041095,2]
[400606276,1767741048954,-500.0,0.00041095,2]
[400606278,1767741048963,-500.0,0.00041095,2]
[400606280,1767741048972,-500.0,0.00041095,2]
[400606282,1767741048982,-500.0,0.00041095,2]
[400606284,1767741048992,-500.0,0.00041095,2]
[400606286,1767741049002,-500.0,0.00041095,2]
[400606288,1767741049012,-500.0,0.00041095,2]
[400606290,1767741049021,-500.0,0.00041095,2]
[400606292,1767741049031,-500.0,0.00041095,2]
[400606294,1767741049041,-500.0,0.00041095,2]
[400606296,1767741049051,-192.03537295,0.00041095,2]
[400606298,1767741049060,-300.0,0.00041095,2]
[400606299,1767741049077,-300.0,0.00041095,2]
[400606301,1767741049087,-300.0,0.00041095,2]
[400606303,1767741049097,-300.0,0.00041095,2]
[400606305,1767741049107,-300.0,0.00041095,2]
[400606307,1767741049117,-300.0,0.00041095,2]
[400606309,1767741049126,-300.0,0.00041095,2]
[400606311,1767741049136,-300.0,0.00041095,2]
[400606313,1767741049145,-300.0,0.00041095,2]
[400606315,1767741049155,-404.81,0.00041095,2]
[400606317,1767741049164,-513.8834858,0.00041095,120]
[400606319,1767741049174,-500.0,0.00041095,2]
[400606321,1767741049183,-500.0,0.00041095,2]
[400606323,1767741049192,-361.44959845,0.00041095,2]
[400606325,1767741049202,-755.58,0.00041095,2]
[400606327,1767741049211,-755.58,0.00041095,2]
[400606329,1767741049220,-755.58,0.00041095,2]
[400606331,1767741049230,-755.58,0.00041095,2]
[400606333,1767741049239,-755.58,0.00041095,2]
[400606335,1767741049248,-755.58,0.00041095,2]
[400606337,1767741049258,-755.58,0.00041095,2]
[400606339,1767741049268,-755.58,0.00041095,2]
[400606341,1767741049277,-755.58,0.00041095,2]
[400606343,1767741049287,-755.58,0.00041095,2]
[400606345,1767741049297,-755.58,0.00041095,2]
[400606347,1767741049309,-755.58,0.00041095,2]
[400606349,1767741049319,-755.58,0.00041095,2]
[400606351,1767741049330,-755.58,0.00041095,2]
[400606353,1767741049343,-755.58,0.00041095,2]
[400606355,1767741049352,-755.58,0.00041095,2]
[400606357,1767741049362,-755.58,0.00041095,2]
[400606359,1767741049374,-755.58,0.00041095,2]
[400606361,1767741049384,-755.58,0.00041095,2]
[400606363,1767741049394,-755.58,0.00041095,2]
[400606365,1767741049404,-755.58,0.00041095,2]
[400606367,1767741049416,-755.58,0.00041095,2]
[400606369,1767741049427,-755.58,0.00041095,2]
[400606371,1767741049437,-755.66263804,0.00041095,2]
[400606373,1767741049448,-6000.0,0.00041095,5]
[400606375,1767741049458,-4000.0,0.00041095,5]
[400606377,1767741049468,-1000.0,0.00041095,2]
[400606379,1767741049478,-1000.0,0.00041095,2]
[400606381,1767741049487,-1000.0,0.00041095,2]
[400606383,1767741049497,-1000.0,0.00041095,2]
[400606385,1767741049506,-1076.95721268,0.00041095,2]
[400606387,1767741049515,-300.0,0.00041095,2]
[400606389,1767741049525,-300.0,0.00041095,2]
[400606391,1767741049536,-300.0,0.00041095,2]
[400606393,1767741049546,-300.0,0.00041095,2]
[400606395,1767741049556,-300.0,0.00041095,2]
[400606397,1767741049566,-300.0,0.00041095,2]
[400606399,1767741049575,-300.0,0.00041095,2]
[400606401,1767741049585,-338.51,0.00041095,2]
[400606403,1767741049595,-300.0,0.00041095,2]
[400606405,1767741049605,-500.0,0.00041095,10]
[400606407,1767741049614,-500.0,0.00041095,10]
[400606409,1767741049624,-500.0,0.00041095,10]
[400606411,1767741049634,-500.0,0.00041095,10]
[400606413,1767741049644,-500.0,0.00041095,10]
[400606415,1767741049653,-500.0,0.00041095,10]
[400606417,1767741049663,-500.0,0.00041095,10]
[400606419,1767741049673,-500.0,0.00041095,10]
[400606421,1767741049683,-500.0,0.00041095,10]
[400606423,1767741049693,-500.0,0.00041095,10]
[400606424,1767741049702,-500.0,0.00041095,10]
[400606425,1767741049711,-500.0,0.00041095,10]
[400606426,1767741049719,-500.0,0.00041095,10]
[400606427,1767741049729,-500.0,0.00041095,10]
[400606428,1767741049738,-500.0,0.00041095,10]
[400606429,1767741049747,-500.20943884,0.00041095,10]
[400606430,1767741049757,-500.0,0.00041095,15]
[400606431,1767741049767,-500.0,0.00041095,15]
[400606432,1767741049776,-500.0,0.00041095,15]
[400606433,1767741049786,-500.0,0.00041095,15]
[400606435,1767741049796,-570.90238403,0.00041095,15]
[400606436,1767741049805,-600.0,0.00041096,120]
[400606438,1767741049815,-150.0,0.00041096,10]
[400606440,1767741049825,-150.0,0.00041096,10]
[400606442,1767741049835,-1000.0,0.00041096,30]
[400606444,1767741049844,-1000.0,0.00041096,30]
[400606447,1767741049854,-1000.0,0.00041096,30]
[400606448,1767741049863,-1000.0,0.00041096,30]
[400606450,1767741049873,-1000.0,0.00041096,30]
[400606452,1767741049883,-1000.0,0.00041096,30]
[400606454,1767741049892,-1000.0,0.00041096,30]
[400606456,1767741049901,-1000.0,0.00041096,30]
[400606458,1767741049911,-254.0,0.00041096,30]
[400606460,1767741049921,-1000.0,0.00041096,30]
[400606462,1767741049930,-1000.0,0.00041096,30]
[400606464,1767741049939,-1000.0,0.00041096,30]
[400606466,1767741049949,-1000.0,0.00041096,30]
[400606468,1767741049958,-1000.0,0.00041096,30]
[400606470,1767741049968,-1000.0,0.00041096,30]
[400606474,1767741049978,-1000.0,0.00041096,30]
[400606477,1767741049988,-1000.0,0.00041096,30]
[400606478,1767741049997,-1000.0,0.00041096,30]
[400606481,1767741050007,-1000.0,0.00041096,30]
[400606482,1767741050016,-1000.0,0.00041096,30]
[400606485,1767741050026,-1000.0,0.00041096,30]
[400606487,1767741050036,-1000.0,0.00041096,30]
[400606489,1767741050045,-1000.0,0.00041096,30]
[400606491,1767741050054,-1000.0,0.00041096,30]
[400606493,1767741050063,-1000.0,0.00041096,30]
[400606495,1767741050072,-1000.0,0.00041096,30]
[400606496,1767741050081,-1000.0,0.00041096,30]
[400606498,1767741050092,-1000.0,0.00041096,30]
[400606500,1767741050101,-1000.0,0.00041096,30]
[400606502,1767741050111,-1000.0,0.00041096,30]
[400606504,1767741050120,-1000.0,0.00041096,30]
[400606506,1767741050130,-1000.0,0.00041096,30]
[400606508,1767741050139,-1000.0,0.00041096,30]
[400606510,1767741050148,-1000.0,0.00041096,30]
[400606512,1767741050158,-1000.0,0.00041096,30]
[400606514,1767741050167,-1000.0,0.00041096,30]
[400606516,1767741050176,-1000.0,0.00041096,30]
[400606518,1767741050185,-1000.0,0.00041096,30]
[400606520,1767741050194,-1000.0,0.00041096,30]
[400606522,1767741050204,-1000.0,0.00041096,30]
[400606524,1767741050213,-1000.0,0.00041096,30]
[400606526,1767741050222,-1000.0,0.00041096,30]
[400606528,1767741050234,-1000.0,0.00041096,30]
[400606530,1767741050243,-1000.0,0.00041096,30]
[400606532,1767741050252,-1000.0,0.00041096,30]
[400606534,1767741050262,-1000.0,0.00041096,30]
[400606536,1767741050272,-1000.0,0.00041096,30]
[400606539,1767741050282,-1000.0,0.00041096,30]
[400606540,1767741050292,-1000.0,0.00041096,30]
[400606542,1767741050302,-1000.0,0.00041096,30]
[400606544,1767741050311,-1000.0,0.00041096,30]
[400606546,1767741050321,-1000.0,0.00041096,30]
[400606548,1767741050330,-1000.0,0.00041096,30]
[400606550,1767741050342,-1000.0,0.00041096,30]
[400606552,1767741050351,-1000.0,0.00041096,30]
[400606554,1767741050361,-1000.0,0.00041096,30]
[400606556,1767741050370,-1000.0,0.00041096,30]
[400606558,1767741050380,-1000.0,0.00041096,30]
[400606560,1767741050389,-1000.0,0.00041096,30]
[400606562,1767741050399,-1000.0,0.00041096,30]
[400606564,1767741050411,-1000.0,0.00041096,30]
[400606566,1767741050420,-1000.0,0.00041096,30]
[400606568,1767741050429,-1000.0,0.00041096,30]
[400606570,1767741050439,-1000.0,0.00041096,30]
[400606572,1767741050448,-1000.0,0.00041096,30]
[400606574,1767741050458,-1000.0,0.00041096,30]
[400606576,1767741050467,-1000.0,0.00041096,30]
[400606578,1767741050476,-1000.0,0.00041096,30]
[400606580,1767741050486,-1000.0,0.00041096,30]
[400606582,1767741050496,-1000.0,0.00041096,30]
[400606584,1767741050506,-1000.0,0.00041096,30]
[400606586,1767741050516,-1000.0,0.00041096,30]
[400606588,1767741050526,-1000.0,0.00041096,30]
[400606590,1767741050537,-1000.0,0.00041096,30]
[400606592,1767741050546,-1000.0,0.00041096,30]
[400606594,1767741050555,-1000.0,0.00041096,30]
[400606596,1767741050565,-1000.0,0.00041096,30]
[400606598,1767741050574,-1000.0,0.00041096,30]
[400606600,1767741050583,-1000.0,0.00041096,30]
[400606602,1767741050593,-1000.0,0.00041096,30]
[400606604,1767741050602,-1000.0,0.00041096,30]
[400606606,1767741050611,-1000.0,0.00041096,30]
[400606608,1767741050620,-1000.0,0.00041096,30]
[400606610,1767741050631,-1000.0,0.00041096,30]
[400606612,1767741050641,-1000.0,0.00041096,30]
[400606614,1767741050651,-1000.0,0.00041096,30]
[400606615,1767741050660,-1000.0,0.00041096,30]
[400606617,1767741050669,-1000.0,0.00041096,30]
[400606619,1767741050678,-1000.0,0.00041096,30]
[400606621,1767741050688,-1000.0,0.00041096,30]
[400606623,1767741050697,-2000.0,0.00041096,13]
[400606625,1767741050706,-2000.0,0.00041096,13]
[400606627,1767741050715,-2000.0,0.00041096,13]
[400606629,1767741050724,-2000.0,0.00041096,13]
[400606631,1767741050733,-2000.0,0.00041096,13]
[400606633,1767741050742,-2000.0,0.00041096,13]
[400606635,1767741050752,-2000.0,0.00041096,13]
[400606637,1767741050761,-2000.0,0.00041096,13]
[400606639,1767741050770,-2000.0,0.00041096,13]
[400606641,1767741050779,-2000.0,0.00041096,13]
[400606642,1767741050788,-1312.0,0.00041096,13]
[400606644,1767741050798,-1000.0,0.00041096,30]
[400606646,1767741050807,-1000.0,0.00041096,30]
[400606648,1767741050817,-1000.0,0.00041096,30]
[400606650,1767741050826,-1000.0,0.00041096,30]
[400606652,1767741050835,-1000.0,0.00041096,30]
[400606654,1767741050845,-1000.0,0.00041096,30]
[400606656,1767741050854,-1000.0,0.00041096,30]
[400606658,1767741050864,-1000.0,0.00041096,30]
[400606660,1767741050873,-1000.0,0.00041096,30]
[400606662,1767741050882,-1000.0,0.00041096,30]
[400606664,1767741050892,-828.0,0.00041096,13]
[400606666,1767741050901,-1180.0,0.00041096,79]
[400606668,1767741050911,-1055.0,0.00041096,98]
[400606670,1767741050920,-1115.9,0.000411,14]
[400606672,1767741050930,-1040.62,0.000411,30]
[400606674,1767741050939,-1000.0,0.000411,7]
[400606676,1767741050949,-5841.42781888,0.0004116,4]
[400606678,1767741050958,-153.0,0.0004117,120]
[400606680,1767741050967,-153.0,0.0004117,120]
[400606682,1767741050976,-5077.93,0.000412,14]
[400606684,1767741050986,-4177.29732156,0.0004121,15]
[400606686,1767741050995,-153.0,0.0004127,120]
[400606688,1767741051005,-153.0,0.0004127,120]
[400606690,1767741051014,-152.0,0.000413,120]
[400606692,1767741051024,-7906.96059577,0.00041305,4]
[400606694,1767741051034,-5841.42781888,0.00041305,4]
[400606696,1767741051044,-152.0,0.00041311,12]
[400606698,1767741051054,-843.90936496,0.00041315,30]
[400606700,1767741051063,-153.0,0.0004137,120]
[400606702,1767741051073,-153.0,0.0004137,120]
[400606704,1767741051082,-1000.0,0.0004137,30]
[400606706,1767741051092,-630.66739421,0.00041397,3]
[400606708,1767741051102,-152.0,0.000414,120]
[400606710,1767741051111,-1115.9,0.000414,14]
[400606711,1767741051120,-1040.62,0.000414,30]
[400606712,1767741051129,-5841.42781888,0.00041433,4]
[400606713,1767741051138,-2823.5,0.00041443,30]
[400606714,1767741051149,-7906.96059577,0.00041445,4]
[400606715,1767741051158,-332.60791905,0.00041465,2]
[400606716,1767741051168,-2658.44986633,0.0004147,2]
[400606717,1767741051178,-153.0,0.0004147,120]
[400606718,1767741051187,-153.0,0.0004147,120]
[400606719,1767741051196,-5841.42781888,0.00041472,4]
[400606720,1767741051207,-843.90936496,0.00041479,30]
[400606721,1767741051216,-250.0,0.000415,45]
[400606722,1767741051227,-1115.9,0.000415,14]
[400606723,1767741051237,-191.17781272,0.000415,45]
[400606733,1767741051421,-751.7661,0.000415,120]
[400606735,1767741051433,-160.0,0.000415,39]
[400606737,1767741051442,-160.0,0.000415,39]
[400606739,1767741051452,-160.0,0.000415,39]
[400606741,1767741051462,-160.0,0.000415,39]
[400606742,1767741051472,-153.0,0.0004157,120]
[400606743,1767741051482,-700.0,0.00041592,60]
[400606744,1767741051491,-3000.0,0.00041592,60]
[400606745,1767741051501,-5841.42781888,0.00041624,4]
[400606746,1767741051511,-7906.96059577,0.00041634,4]
[400606747,1767741051521,-600.0,0.00041644,120]
[400606748,1767741051531,-208.38787665,0.00041644,10]
[400606749,1767741051542,-843.90936496,0.00041644,30]
[400606751,1767741051551,-1204.0,0.00041644,30]
[400606753,1767741051560,-1000.0,0.00041655,14]
[400606755,1767741051570,-153.0,0.0004167,120]
[400606756,1767741051580,-281.48332723,0.00041698,17]
[400606758,1767741051590,-1275.58,0.000417,14]
[400606759,1767741051599,-1115.9,0.000417,14]
[400606760,1767741051608,-1040.62,0.000417,30]
[400606761,1767741051619,-153.0,0.0004177,120]
[400606762,1767741051628,-630.66739421,0.00041798,5]
[400606763,1767741051637,-843.90936496,0.00041808,30]
[400606764,1767741051647,-7906.96059577,0.00041823,4]
[400606765,1767741051656,-162.0,0.00041842,11]
[400606766,1767741051665,-833.0,0.00041843,11]
[400606767,1767741051675,-833.0,0.00041843,11]
[400606768,1767741051684,-162.0,0.00041848,11]
[400606769,1767741051694,-800.0,0.00041866,60]
[400606770,1767741051703,-833.0,0.00041867,11]
[400606771,1767741051713,-153.0,0.0004187,120]
[400606772,1767741051722,-833.0,0.00041871,11]
[400606773,1767741051732,-833.0,0.00041871,11]
[400606774,1767741051743,-162.0,0.00041878,11]
[400606775,1767741051752,-162.0,0.00041878,11]
[400606776,1767741051762,-833.0,0.00041878,11]
[400606777,1767741051771,-1353.9,0.00041881,30]
[400606778,1767741051781,-152.0,0.000419,120]
[400606779,1767741051791,-1000.0,0.000419,7]
[400606780,1767741051801,-564.59586439,0.000419,120]
[400606781,1767741051810,-564.59586424,0.000419,120]
[400606782,1767741051820,-564.59586424,0.000419,120]
[400606783,1767741051829,-564.59586424,0.000419,120]
[400606784,1767741051838,-564.59586424,0.000419,120]
[400606785,1767741051848,-564.59586424,0.000419,120]
[400606786,1767741051858,-564.59586424,0.000419,120]
[400606787,1767741051868,-564.59586424,0.000419,120]
[400606788,1767741051878,-564.59586424,0.000419,120]
[400606789,1767741051887,-564.59586424,0.000419,120]
[400606791,1767741051898,-564.59586424,0.000419,120]
[400606792,1767741051907,-564.59586424,0.000419,120]
[400606793,1767741051918,-564.59586424,0.000419,120]
[400606794,1767741051927,-564.59586424,0.000419,120]
[400606795,1767741051937,-564.59586424,0.000419,120]
[400606796,1767741051946,-564.59586424,0.000419,120]
[400606797,1767741051956,-564.59586424,0.000419,120]
[400606798,1767741051967,-564.59586424,0.000419,120]
[400606799,1767741051977,-1000.0,0.00041918,30]
[400606800,1767741051987,-200.0,0.00041918,10]
[400606801,1767741051996,-2658.44986633,0.00041953,2]
[400606802,1767741052006,-914.0,0.00041963,2]
[400606803,1767741052015,-1200.0,0.00041963,2]
[400606804,1767741052025,-153.0,0.0004197,120]
[400606805,1767741052036,-843.90936496,0.00041973,30]
[400606806,1767741052046,-2435.0,0.00041973,2]
[400606807,1767741052056,-4817.0,0.00041973,2]
[400606808,1767741052066,-152.0,0.0004199,13]
[400606809,1767741052076,-1037.0,0.00042,30]
[400606810,1767741052086,-551.0,0.00042,30]
[400606811,1767741052096,-1275.58,0.00042,14]
[400606812,1767741052105,-1115.9,0.00042,14]
[400606813,1767741052115,-1040.62,0.00042,30]
[400606814,1767741052125,-725.65,0.00042,120]
[400606815,1767741052136,-1018.0,0.00042,30]
[400606816,1767741052145,-150.0,0.00042011,2]
[400606817,1767741052156,-150.0,0.00042011,2]
[400606818,1767741052165,-150.0,0.00042011,2]
[400606819,1767741052175,-150.0,0.00042011,2]
[400606820,1767741052184,-150.0,0.00042013,2]
[400606821,1767741052193,-150.0,0.00042013,2]
[400606822,1767741052203,-150.0,0.00042013,2]
[400606823,1767741052213,-150.0,0.00042013,2]
[400606824,1767741052222,-150.0,0.00042013,2]
[400606825,1767741052231,-614.0,0.00042013,2]